Cogmind - Beta 16.1 @@@ ROGUE MODE // 2026.03.28 @ 15:55:07 Player: Skrub Result: Destroyed by Autobeam Turret with Autobeam Performance ------------- Evolutions (0) 0 Regions Visited (3) 600 Robots Destroyed (12) 60 Value Destroyed (262) 262 Prototype IDs (1) 20 Alien Tech Used (0) 0 Bonus (0) 0 TOTAL SCORE: 942 Bonus ------- None Cogmind --------- Core Integrity 0/250 Matter 300/300 Energy 122/125 System Corruption 0% Temperature Cool (12) Movement Flying (37) Location -10/Subcaves Parts ------- > --- POWER (1) -------- Light Ion Engine > --- PROPULSION (2) --- Flight Unit Flight Unit > --- UTILITY (2) ------ Signal Interpreter > --- WEAPON (2) ------- Riot Gun Light Assault Rifle > --- INVENTORY (5) ---- Ion Engine Light Ion Engine Wheel Wheel Enhanced Flamer Peak State ------------ > --- POWER ------------ Light Ion Engine > --- PROPULSION ------- Flight Unit Flight Unit > --- UTILITY ---------- Experimental Sensor Array > --- WEAPON ----------- Light Assault Rifle Light Assault Rifle > --- INVENTORY -------- Ion Engine Light Ion Engine Wheel Wheel [Rating: 14] Favorites ----------- Power Light Ion Engine Engine Light Ion Engine Propulsion Flight Unit Wheel Wheel Flight Unit Flight Unit Utility Signal Interpreter Device Experimental Sensor Array Processor Signal Interpreter Weapon Light Assault Rifle Energy Gun Riot Gun Ballistic Gun Light Assault Rifle Build | -11 -10 -10 -10 ------- Run | Yrd Mat Min Sub Slots Evolved . | . . . . Power . | . . . . Propulsion . | . . . . Utility . | . . . . Weapon . | . . . . Parts Attached 15 | 1 . 13 1 Power 2 | 1 . 1 . Engine 2 | 1 . 1 . Core . | . . . . Reactor . | . . . . Propulsion 5 | . . 5 . Treads . | . . . . Leg . | . . . . Wheel 2 | . . 2 . Hover . | . . . . Flight 3 | . . 3 . Utility 2 | . . 2 . Device 1 | . . 1 . Storage . | . . . . Processor 1 | . . 1 . Hackware . | . . . . Protection . | . . . . Artifact . | . . . . Weapon 6 | . . 5 1 Energy Gun 3 | . . 2 1 Energy Cannon . | . . . . Ballistic Gun 3 | . . 3 . Ballistic Cannon . | . . . . Launcher . | . . . . Special Weapon . | . . . . Impact Weapon . | . . . . Slashing Weapon . | . . . . Piercing Weapon . | . . . . Special Melee Weapon . | . . . . Unidentified Prototypes 1 | . . 1 . Parts Lost 6 | . . 5 1 Power 1 | . . 1 . Propulsion 1 | . . 1 . Utility 1 | . . 1 . Weapon 3 | . . 2 1 Highest Loss Streak 3 | . . 3 1 To Critical Strikes . | . . . . Average Backups 4 | 3 5 3 4 Power 1 | . 1 1 2 Propulsion 1 | 1 2 1 2 Utility . | . . . . Weapon . | 1 2 . . Tool/Special . | . . . . Unused Backups 3 | . . . 3 Power 2 | . . . 2 Propulsion . | . . . . Utility . | . . . . Weapon 1 | . . . 1 Tool/Special . | . . . . Average Slot Usage (%) 72 | . 14 72 84 Engine 13 | . 14 13 14 Wheel 1 | . . 1 . Flight 24 | . . 24 28 Device 3 | . . 4 . Processor 5 | . . 1 14 Energy Gun 5 | . . 4 9 Ballistic Gun 18 | . . 21 17 Peak Build Rating 14 | 1 1 14 8 Average Rating 7 | . 1 7 7 On Entrance 2 | . 1 1 6 Avg Prop Armor Cover (%) . | . . . . Naked Turns . | . . . . Heaviest Build 7 | 3 3 7 7 Greatest Support 20 | 3 3 20 8 Greatest Overweight (x) 1 | . . 1 . Average Overweight (x) . | . . . . Largest Inventory Capacity 5 | 5 5 5 5 Average Capacity 5 | 5 5 5 5 Most Carried 5 | 5 5 5 5 Average Carried 4 | 3 5 3 4 Final Capacity 5 | 5 5 5 5 Final Carried 5 | 5 5 4 5 Class Distribution -------------------- 79% | Scavenger-Mutant 20% | Mutant Dominant Class ---------------- Mutant | -10/Materials Scavenger-Mutant | -10/Mines Scavenger-Mutant | -10/Subcaves Resources | -11 -10 -10 -10 ----------- Run | Yrd Mat Min Sub Matter Collected 400 | 70 . 310 20 Remotely . | . . . . Salvage Created 387 | . . 344 43 Parts 26 | . . 25 1 Haulers Intercepted . | . . . . Recyclers Shooed . | . . . . Parts Field Recycled . | . . . . Retrieved Matter . | . . . . Parts Self-Destructed 3 | . . . 3 Prevented 1 | . . . 1 Parts Restored . | . . . . Kills | -11 -10 -10 -10 ------- Run | Yrd Mat Min Sub Combat Hostiles Destroyed 11 | . . 10 1 Guns 11 | . . 10 1 Classes Destroyed 3 | . . 3 . Recycler 1 | . . 1 . Swarmer 6 | . . 6 . Grunt 5 | . . 4 1 Best Kill Streak 3 | . . 3 1 Combat Bots Only 3 | . . 3 1 Max Kills in Single Turn 1 | . . 1 1 Gunslinging . | . . . . Exploded . | . . . . Melee . | . . . . Uniques/NPCs Destroyed . | . . . . Combat | -11 -10 -10 -10 -------- Run | Yrd Mat Min Sub Hostile Shots Fired 93 | . . 77 16 Missed 28 | . . 23 5 Hits 65 | . . 54 11 Projectile 65 | . . 54 11 Damage Taken 741 | . . 544 197 Core 256 | . . 177 79 Absorbed by Shields . | . . . . Core Remaining (%) 100 | 100 . . . Volleys Fired 46 | . . 42 4 Largest 2 | . . 2 2 Hottest 90 | . . 90 70 Shots Fired 69 | . . 61 8 Gun 69 | . . 61 8 Cannon . | . . . . Launcher . | . . . . Special . | . . . . Kinetic 39 | . . 34 5 Thermal 22 | . . 22 . Explosive . | . . . . Electromagnetic 8 | . . 5 3 Robot Hit Streak 12 | . . 12 4 Robot Miss Streak 5 | . . 5 1 Penetration Max . | . . . . Secondary Targets 2 | . . 2 . Max Gunslinging Chain 1 | . . 1 . Shots Hit Robots 46 | . . 39 7 Core Hits 25 | . . 22 3 Critical Kills . | . . . . Critical Parts Destroyed 1 | . . 1 . Critical Strikes 5 | . . 5 . Burn 4 | . . 4 . Destroy 1 | . . 1 . Melee Attacks . | . . . . Impact . | . . . . Slashing . | . . . . Piercing . | . . . . Sneak Attacks . | . . . . Combat Hostiles . | . . . . Follow-up Attacks . | . . . . Damage Inflicted 507 | . . 408 99 Guns 507 | . . 408 99 Cannons . | . . . . Explosions . | . . . . Melee . | . . . . Ramming . | . . . . Kinetic 179 | . . 149 30 Thermal 229 | . . 229 . Explosive . | . . . . Electromagnetic 99 | . . 30 69 Impact . | . . . . Slashing . | . . . . Piercing . | . . . . Highest Corruption . | . . . . Average Corruption . | . . . . Corruption Purged . | . . . . Corruption Blocked . | . . . . Overload Shots . | . . . . Overflow Damage . | . . . . Projectiles . | . . . . Explosions . | . . . . Melee . | . . . . Knockbacks . | . . . . Impact . | . . . . Kinetic . | . . . . Secondary . | . . . . Self-Inflicted Damage . | . . . . Shots . | . . . . Rammed . | . . . . Targets Rammed . | . . . . Kicked . | . . . . Crushed . | . . . . Highest Temperature 322 | . . 322 3 Average Temperature 103 | . . 105 3 Received Heat Transfer 246 | . . 177 69 Effects 1 | . . 1 . Shutdowns 1 | . . 1 . Siege Activations . | . . . . Martial Activations . | . . . . Shielding Activations . | . . . . Robots Disrupted . | . . . . Combat Hostiles . | . . . . Robots Corrupted . | . . . . Combat Hostiles . | . . . . Parts Fried . | . . . . Impact Corruptions . | . . . . Robots Melted . | . . . . Combat Hostiles . | . . . . Parts Melted 2 | . . 2 . Heat Transferred 962 | . . 962 . Parts Sabotaged . | . . . . Parts Stolen . | . . . . Parts Stripped . | . . . . Power Chain Reactions . | . . . . Alert | -11 -10 -10 -10 ------- Run | Yrd Mat Min Sub Maximum Alert Level . | . . . . Low Security (%) 100 | 100 100 100 . Level 1 . | . . . . Level 2 . | . . . . Level 3 . | . . . . Level 4 . | . . . . Level 5 . | . . . . High Security . | . . . . Max Security . | . . . . Peak Influence 70 | . . 70 . Initial . | . . . . Average 20 | . . 23 . Influence Increases 265 | . . 245 20 Destroy 0b10 Robot/C 220 | . . 200 20 Destroy 0b10 Robot/NC 5 | . . 5 . Destroy Leader 40 | . . 40 . Influence Decreases 245 | . . 245 . Time Decay 195 | . . 195 . Lost Part 50 | . . 50 . Squads Dispatched . | . . . . Investigation . | . . . . Extermination . | . . . . Reinforcement . | . . . . Assault . | . . . . Garrison . | . . . . Intercept . | . . . . Searches Triggered . | . . . . Construction Impeded . | . . . . Haulers Reinforced . | . . . . Active Scanning Responses . | . . . . Cargo Convoy Interrupts . | . . . . Stealth | -11 -10 -10 -10 --------- Run | Yrd Mat Min Sub Distress Signals . | . . . . Communications Jammed . | . . . . Distress Signals . | . . . . Times Spotted 25 | . 3 10 12 Peak Tracking Total 8 | . 5 3 8 Tactical Retreats 3 | . . . 3 Traps | -11 -10 -10 -10 ------- Run | Yrd Mat Min Sub Traps Triggered . | . . . . Indirectly . | . . . . Trap Hack Attempts . | . . . . Triggered . | . . . . Disarmed . | . . . . Reprogrammed . | . . . . Reused . | . . . . Traps Extracted . | . . . . Installed . | . . . . Triggered . | . . . . Machines | -11 -10 -10 -10 ---------- Run | Yrd Mat Min Sub Machines Disabled . | . . . . Max in Single Turn . | . . . . Machines Repaired . | . . . . Machines Dismantled . | . . . . Machines Sabotaged . | . . . . Overloaded Fab Kills . | . . . . Hacking | -11 -10 -10 -10 --------- Run | Yrd Mat Min Sub Machines Accessed 1 | . 1 . . Terminals 1 | . 1 . . Fabricators . | . . . . Repair Stations . | . . . . Recycling Units . | . . . . Scanalyzers . | . . . . Garrison Access . | . . . . Total Hacks 2 | . 2 . . Successful . | . . . . Failed 2 | . 2 . . Catastrophic 1 | . 1 . . Database Lockouts . | . . . . Manual . | . . . . Terminals 2 | . 2 . . Fabricators . | . . . . Repair Stations . | . . . . Recycling Units . | . . . . Scanalyzers . | . . . . Garrison Access . | . . . . Terminal Hacks . | . . . . Fabricator Hacks . | . . . . Repair Station Hacks . | . . . . Recycling Unit Hacks . | . . . . Scanalyzer . | . . . . Garrison Access Hacks . | . . . . Unauthorized Hacks . | . . . . Terminals . | . . . . Fabricators . | . . . . Repair Stations . | . . . . Recycling Units . | . . . . Scanalyzers . | . . . . Garrison Access . | . . . . Data Cores Recovered . | . . . . Used . | . . . . Hacking Detections 1 | . 1 . . Full Trace Events . | . . . . Feedback Events . | . . . . Feedback Blocked . | . . . . Robot Schematics Acquired . | . . . . Robots Built . | . . . . Authchips . | . . . . Time . | . . . . Total Robot Build Rating . | . . . . Part Schematics Acquired . | . . . . Parts Built . | . . . . Authchips . | . . . . Time . | . . . . Total Part Build Rating . | . . . . Part Studies Acquired . | . . . . Parts Repaired . | . . . . Time . | . . . . Parts Recycled . | . . . . Recycled Matter . | . . . . Retrieved Matter . | . . . . Retrieved Components . | . . . . Parts Scanalyzed . | . . . . Part Schematics Acquired . | . . . . Parts Damaged . | . . . . Bothacking | -11 -10 -10 -10 ------------ Run | Yrd Mat Min Sub Used RIF Installer . | . . . . Robots Hacked . | . . . . Non-combat . | . . . . Combat . | . . . . Robot Hacks Applied . | . . . . Relay Couplers Released . | . . . . Fabnet Peak Effective % . | . . . . Robots Rewired . | . . . . Allies Hacked . | . . . . Hacks Repelled . | . . . . Allies | -11 -10 -10 -10 -------- Run | Yrd Mat Min Sub Total Allies . | . . . . Largest Group . | . . . . Highest-Rated Group . | . . . . Highest-Rated Ally . | . . . . Total Orders . | . . . . Ally Attacks . | . . . . Total Damage . | . . . . Kills . | . . . . Allies Corrupted . | . . . . Allies Melted . | . . . . Intel | -11 -10 -10 -10 ------- Run | Yrd Mat Min Sub Active Infowar (turns) 170 | . . 170 . Sensors 170 | . . 170 . Robot Analysis Total . | . . . . Derelict Logs Recovered 2 | . . 2 . Drone Launches . | . . . . Drone Recoveries . | . . . . Exploration | -11 -10 -10 -10 ------------- Run | Yrd Mat Min Sub Turns Passed 778 | 24 37 484 233 Spaces Moved 1388 | 35 74 785 494 Core 110 | 35 74 1 . Treads . | . . . . Legs . | . . . . Wheels 10 | . . 10 . Hover . | . . . . Flight 1268 | . . 774 494 Fastest Speed 37 | 50 50 37 37 Average Speed 38 | 50 50 37 37 Slowest Speed 120 | 50 50 120 37 Overloaded Moves . | . . . . Propulsion Burnouts . | . . . . Robots Hopped 1 | . . 1 . Potential Cave-ins . | . . . . Cave-ins Triggered . | . . . . Exploration Rate (%) 40 | 3 17 99 42 Regions Visited 3 Branch Regions 2 Pre-discovered Areas 2 | . . 1 1 Known Exits Taken 1 | . . 1 . Unknown Exits Taken 2 | 1 1 . . Scrap Searched 3 | . . 2 1 Spaces Dug . | . . . . Terrain Destroyed . | . . . . Melee . | . . . . Projectile . | . . . . AOE . | . . . . Terrain Rammed . | . . . . Walls Destroyed . | . . . . Machines Disabled . | . . . . Actions | -11 -10 -10 -10 --------- Run | Yrd Mat Min Sub Total 1565 | 40 73 915 537 Wait 101 | . . 64 37 Move 1383 | 34 73 782 494 Hop 1 | . . 1 . Pick Up 7 | 5 . 1 1 Fast Attach 12 | 1 . 10 1 Attach 7 | . . 7 . Detach 6 | . . 6 . Swap . | . . . . Drop 2 | . . 2 . Fire 46 | . . 42 4 Melee . | . . . . Ram . | . . . . Kick . | . . . . Crush . | . . . . Escape Stasis . | . . . . Rewire . | . . . . Trap . | . . . . Miscellaneous . | . . . . Route ------- -11/Scrapyard -10/Materials -10/Mines (discovered 3 exits: *Mat x2 / *Sub) -10/Subcaves (discovered 1 exit: *Mat) History --------- Turn | Location | Event 16 | -11/Scrapyard | Discovered new exit (range 16) 25 | -11/Scrapyard | Entered Materials 60 | -10/Materials | Discovered new exit (range 6) 62 | -10/Materials | Entered Mines 100 | -10/Mines | Learned 4 Materials zone layouts 134 | -10/Mines | Met a Derelict bent on vengeance 138 | -10/Mines | Core integrity fell below 50% 218 | -10/Mines | Discovered new exit (range 3) 227 | -10/Mines | Found a damaged Exp. Sensor Array with a note attached 227 | -10/Mines | Found Prototype Device 227 | -10/Mines | Identified Exp. Sensor Array 416 | -10/Mines | Discovered new exit (range 15) 418 | -10/Mines | Learned location of Storage (-9) 428 | -10/Mines | Lost 3 parts (1p1u1w) 451 | -10/Mines | Learned 2 Materials zone layouts 456 | -10/Mines | Discovered new exit (range 6) 496 | -10/Mines | Found a hidden stash of uninstalled traps 522 | -10/Mines | Identified exit to Subcaves 532 | -10/Mines | Identified exit to Materials 546 | -10/Mines | Entered Subcaves 547 | -10/Subcaves | Approached by a straggling Scientist 554 | -10/Subcaves | Learned location of Zion (-6) 554 | -10/Subcaves | Met a Zionite searching for "candidates" 577 | -10/Subcaves | A swath of the cavern ceiling suddenly collapsed 587 | -10/Subcaves | Core integrity fell below 20% 661 | -10/Subcaves | Shifting Twisted Machinery released Mak. Light Armor Plating 671 | -10/Subcaves | Discovered new exit (range 6) 673 | -10/Subcaves | Identified exit to Materials 706 | -10/Subcaves | Build established: Scavenger-Mutant 717 | -10/Subcaves | Shifting Twisted Machinery released Ripper 731 | -10/Subcaves | Shifting Twisted Machinery released Enh. Flamer 779 | -10/Subcaves | Destroyed by Autobeam Turret with Autobeam Last Messages --------------- 00609_ Found Riot Gun. 00609_ Found Sub. Machine Gun. 00609_ Found 59 Matter. 00609_ Acquired Riot Gun. 00611_ Acquired 17 matter. 00612_ Subatomizers dissect the Sub. Machine Gun. 00629_ DB-KCA(u) builds Twisted Machinery. Mak. Light Armor Plating falls loose from the Twisted Machinery. 00671_ EXIT=FOUND 00673_ EXIT=IDENTIFIED: MATERIALS Ripper falls loose from the Twisted Machinery. Enh. Flamer falls loose from the Twisted Machinery. 00734_ Acquired Enh. Flamer. 00771_ G-34 Mercenary destroyed. 00773_ Acquired 3 matter. 00775_ Corrupted Ion Engine self-destruct mechanism malfunctions. Map ----- +----------------------------------------------------+ | ??????????????????????????????????????????????? | | ??????????????????????????????????????????????? | | ??????????????????????????????????????????????? | | ??????????????????????????????????????????????? | | ??????????????????????????????????????????????? | | ??????????????????????????????????????????????? | | ??????????????????????????????????????????????? | | ??????????????????????????????????????????????? | | ??????????????????????????????????????????????? | | ??????????????????????????????????????????????? | | ??????????????????????????????????????????????? | | ??????????????????????????????????????????????? | | ??????????????????????????????????????????????? | | ??????????????????????????????????????????????? | | ??????????????????????????????????????????????? | | ????????????????????????#?????????????????????? | | ??????????????????????#""" ???????????????????? | | ?????????????????????##" ???????????????????? | | ?????????????????????# "" ?????????????????? | | ?????????????????????# "" ?????????????????? | | ?????????????????????# """"##????????????????? | | ?????????????????????? " """"#????????????????? | | ??????????????????????? """""#????????????????? | | ??????????? ???????????# "#?????????????????? | | ??????????" ######## #??????????????????? | | ???????????"t [&%!%@ ##?????????????????? | | ?????????? !&!* ####??????????????? | | ???????????"t & % #??????????????? | | ??????????" ######### ##?????????????? | | ??????????? ????????????# ## #?????????????? | | ????????????????????????# #?????????????? | | ???????????????????????## ###?????????????? | | ?????????????##??####??# % ##??????????????? | | ?????????##### ### ?## % #??????????????? | | ???????? # % ## ##??????????????? | | ????????# % ##???????????????? | | ???????% % %## #????????????????? | | ????????????# ### #????????????????? | | ????????????# *%#######????????????????? | | ????????????## ## #####?????????????????? | | ????????????????## #?????????????????? | | ?????????????????## ##?????????????????? | | ??????????????????# ####???????????????? | | ??????????????????# #???????????????? | | ??????????????????# #???????????????? | | ??????????????????# #???????????????? | | ??????????????????### ##??????????????? | | ????????????????????# #??????????????? | | ????????????????????# ## #??????????????? | | ????????????????????## ## ##?????????????? | +----------------------------------------------------+ Best States ------------- Heat Dissipation 25 Energy Generation 10 Energy Capacity 125 Matter Stores 300 Matter Capacity 300 Sight Range 16 Robot Scan Range 20 Terrain Scan Density 10 Evasion (%) 62 Item Schematics ----------------- None Robot Schematics ------------------ None Fabricated ------------ Nothing Repaired ---------- Nothing Studied --------- None Alien Tech Used ----------------- None Achievements -------------- None Challenges ------------ None Game ------ Seed SuspensionMeleePulseblaster Manual? 0 Play Time 00:14:30 Cumulative 21.7 hours Start 2026.03.28 @ 15:40:16 End 2026.03.28 @ 15:55:07 Sessions 1 Manual Loads 0 Difficulty Rogue Special Mode None Game No. 32 Rogue 32 Adventurer 0 Explorer 0 Win Type - Total 0 Types 0/0/0/0/0/0/0/0/0/0 Lore% 15 Gallery% 20 Achievement% 20 Wizard Run 0 Options --------- Layout 1 ASCII 0 Keyboard 0 Movement Mouse Keybinds 0 Fullscreen 1 Font 48/Smallcaps Map View 50x35 Zoom Use 0% Tactical HUD 1 Map Filters NONE Filters NONE Steam 1 RUN: b7e4db05-943a-4434-9af2-e7c747b1a235